bitfinex-derivatives/quotes_SOLF0:USTF0_20240816
["timestamp","ask_amount","ask_price","bid_price","bid_amount"]
[1723826246152,51.68,139.17,139.09,3.5938]
[1723826246545,51.68,139.17,139.07,51.68]
[1723826246749,51.68,139.17,139.08,3.5942]
[1723826247053,0.0486749,139.13,139.11,0.04974963]
[1723826248343,0.0486749,139.13,139.12,3.5931]
[1723826248550,0.0486749,139.13,139.11,51.72974963]
[1723826248551,4.95068838,139.21,139.11,51.72974963]
[1723826248763,4.95068838,139.21,139.11,51.68]
[1723826249049,4.95068838,139.21,139.14,3.5925]
[1723826249852,0.049023,139.19,139.16,0.04819487]
[1723826252950,0.049023,139.19,139.18,3.5916]
[1723826253150,0.049023,139.19,139.17,51.68]
[1723826253151,0.049023,139.19,139.16,0.04819487]
[1723826256457,0.049023,139.19,139.08,51.68]
[1723826256653,51.68,139.15,139.03,1.2718]
[1723826256850,3.64027532,139.14,139.04,51.68]
[1723826257049,51.68,139.15,139.04,51.68]
[1723826257259,1.2699,139.13,139.04,51.68]
[1723826257565,1.2699,139.13,139.06,3.5945]
[1723826257566,3.57929119,139.12,139.06,3.5945]
[1723826257759,0.04878215,139.1,139.07,0.05442512]
[1723826260066,3.594,139.09,139.07,0.05442512]
[1723826261070,0.04878215,139.1,139.07,0.05442512]
[1723826262768,0.34310254,139.1,139.07,0.05442512]
[1723826262966,3.5942,139.08,139.07,0.05442512]
[1723826264571,51.68,139.09,138.98,1.2718]
[1723826264775,1.3239,139.07,138.99,3.5965]
[1723826265173,3.5953,139.04,138.99,3.5965]
[1723826265470,53.0039,139.07,138.92,1.9329]
[1723826265675,53.0039,139.07,139.0,0.02288622]
[1723826265676,0.05504263,139.03,139.0,0.02288622]
[1723826265872,3.60503327,139.02,139.0,0.02288622]
[1723826266071,0.05504263,139.03,139.0,0.02288622]
[1723826266270,3.596,139.01,139.0,0.02288622]
[1723826266965,7.26113492,139.01,139.0,0.02288622]
[1723826267170,0.05504263,139.03,139.0,0.02288622]
[1723826267371,3.62160087,139.02,139.0,0.02288622]
[1723826267966,7.21750087,139.02,139.0,0.02288622]
[1723826268164,3.62160087,139.02,139.0,0.02288622]
[1723826268780,7.21730087,139.02,139.0,0.02288622]
[1723826268972,3.62160087,139.02,139.0,0.02288622]
[1723826269972,3.596,139.01,139.0,0.02288622]
[1723826270571,3.59795584,139.02,138.92,1.3864]
[1723826270880,51.68,139.03,138.92,1.3864]
[1723826271373,55.36573718,139.03,138.93,51.68]
[1723826271676,3.68573718,139.03,138.95,51.68]
[1723826271877,0.05184065,138.99,138.95,51.68]
[1723826272278,0.05184065,138.99,138.95,55.2773]
[1723826272971,0.05184065,138.99,138.96,3.5972]
[1723826273365,0.05184065,138.99,138.95,51.68]
[1723826273779,0.05184065,138.99,138.93,51.68]
[1723826274276,0.05184065,138.99,138.95,3.5975]
[1723826274477,0.05184065,138.99,138.93,51.68]
[1723826274777,3.64844065,138.99,138.94,3.5976]
[1723826274976,0.05184065,138.99,138.93,51.68]
[1723826275378,0.05184065,138.99,138.95,3.5974]
[1723826276372,0.05184065,138.99,138.96,3.5972]
[1723826278975,0.05184065,138.99,138.93,51.68]
[1723826279477,0.05184065,138.99,138.96,3.5971]
[1723826280379,0.05184065,138.99,138.95,3.5975]
[1723826280577,0.05184065,138.99,138.92,1.3864]
[1723826280792,0.05184065,138.99,138.9,51.68]
[1723826280982,3.5971,138.97,138.92,3.5981]
[1723826281176,0.05055043,138.96,138.92,3.5981]
[1723826281375,0.05055043,138.96,138.92,51.68]
[1723826281685,0.05055043,138.96,138.93,3.5979]
[1723826283286,0.05055043,138.96,138.92,55.2782]
[1723826283478,0.05055043,138.96,138.92,51.68]
[1723826283682,3.64795043,138.96,138.91,3.5984]
[1723826283980,3.64795043,138.96,138.88,51.68]
[1723826283981,0.05055043,138.96,138.88,51.68]
[1723826284775,3.5979,138.94,138.89,3.5989]
[1723826284972,2.7103,138.98,138.85,1.2982]
[1723826284973,51.68,138.97,138.87,53.0373]
[1723826285183,52.9798,138.97,138.87,51.68]
[1723826285382,0.05216157,138.93,138.87,51.68]
[1723826285980,0.05216157,138.93,138.89,51.68]
[1723826286378,0.05216157,138.93,138.92,3.5983]
[1723826286680,0.05216157,138.93,138.85,1.2982]
[1723826286681,0.05216157,138.93,138.89,51.68]
[1723826287084,0.05216157,138.93,138.9,3.5986]
[1723826287383,0.05216157,138.93,138.89,51.68]
[1723826287598,3.5983,138.92,138.89,51.68]
[1723826287781,3.5983,138.92,138.88,3.5992]
[1723826287989,0.05216157,138.93,138.88,3.5992]
[1723826288189,3.65036157,138.93,138.88,3.5992]
[1723826288482,3.65036157,138.93,138.89,3.5991]
[1723826288687,3.65036157,138.93,138.87,51.68]
[1723826288891,3.5986,138.91,138.87,51.68]
[1723826289083,3.5986,138.91,138.87,55.2795]
[1723826289691,3.5985,138.92,138.88,3.5993]
[1723826289891,0.05216157,138.93,138.87,51.68]
[1723826290283,3.5984,138.92,138.87,55.2795]
[1723826291190,0.05216157,138.93,138.85,51.68]
[1723826291389,0.05216157,138.93,138.8,1.3891]
[1723826291583,51.73216157,138.93,138.81,51.68]
[1723826291785,51.73216157,138.93,138.81,55.2493256]
[1723826291985,1.3481,138.96,138.86,51.68]
[1723826292189,0.04784939,138.88,138.86,51.68]
[1723826292586,3.599,138.9,138.86,51.68]
[1723826292785,0.0456118,138.88,138.83,51.68]
[1723826293292,0.0456118,138.88,138.83,55.2805]
[1723826293293,3.6450118,138.88,138.83,55.2805]
[1723826294390,0.0456118,138.88,138.84,3.6002]
[1723826294584,0.0456118,138.88,138.83,51.68]
[1723826295189,0.0456118,138.88,138.81,51.68]
[1723826295389,3.5997,138.87,138.82,3.6007]
[1723826296191,3.5999,138.86,138.81,55.281]
[1723826296588,0.05139469,138.85,138.81,51.68]
[1723826296791,0.05139469,138.85,138.82,3.6008]
[1723826297086,0.05139469,138.85,138.81,51.68]
[1723826297293,0.05139469,138.85,138.64,7.2112]
[1723826297294,49.0,138.84,138.64,7.2112]
[1723826297493,69.89125689,138.66,138.42,0.6233]
[1723826297683,69.89125689,138.66,138.36,7.52821729]
[1723826297684,51.68,138.57,138.36,7.52821729]
[1723826297905,51.68,138.57,138.3,216.59724134]
[1723826297906,3.9403,138.65,138.3,1.3223]
[1723826298395,51.68,138.52,138.43,1.32432328]
[1723826298595,55.31311561,138.52,138.43,1.32432328]
[1723826298821,3.63311561,138.52,138.43,1.32432328]
[1723826299098,51.68,138.53,138.43,1.32432328]
[1723826299299,51.68,138.51,138.43,1.32432328]
[1723826299496,51.68,138.47,138.08,7.2403]
[1723826299694,1.354,138.5,138.36,51.64]
[1723826299997,1.354,138.5,138.33,62.43]
[1723826299998,3.6121,138.39,138.33,62.43]
[1723826300192,3.65067104,138.38,138.18,79.11882223]
[1723826300385,3.68064193,138.39,138.26,62.43]
[1723826300599,62.43,138.38,138.24,62.43]
[1723826300793,3.57664656,138.41,138.29,62.43]
[1723826300991,3.6132,138.35,138.3,62.43]
[1723826301192,62.43,138.39,138.24,62.43]
[1723826301393,62.43,138.37,138.18,82.73446705]
[1723826301601,62.43,138.37,138.21,3.6166]
[1723826301889,62.43,138.4,138.27,62.43]
[1723826301890,0.0476912,138.34,138.27,62.43]
[1723826302296,66.02508906,138.34,138.22,62.43]
[1723826302493,62.43,138.37,138.22,62.43]
[1723826302691,62.43,138.37,138.24,62.43]
[1723826302993,0.04649528,138.29,138.27,62.43]
[1723826303195,62.43,138.44,138.27,62.43]
[1723826303393,62.43,138.44,138.3,62.43]
[1723826303594,63.725,138.47,138.32,62.43]
[1723826303896,63.725,138.47,138.3,62.43]
[1723826304097,62.43,138.43,138.3,62.43]
[1723826304294,62.43,138.4,138.27,62.43]
[1723826304599,66.0423,138.38,138.37,0.04782981]
[1723826304792,62.43,138.38,138.18,79.11882223]
[1723826304997,62.43,138.35,138.22,62.43]
[1723826305293,62.43,138.3,138.16,62.43]
[1723826305491,62.43,138.3,138.05,62.43]
[1723826305695,62.43,138.27,138.14,3.6185]
[1723826305998,62.43,138.23,138.1,62.43]
[1723826306187,65.97869981,138.27,138.15,62.43]
[1723826306389,0.05165664,138.19,138.15,62.43]
[1723826306790,65.97869981,138.27,138.12,62.43]
[1723826307196,69.59399981,138.27,138.19,3.6171]
[1723826307487,0.05330962,138.18,138.17,62.43]
[1723826307686,62.43,138.33,138.24,3.6158]
[1723826307897,3.58741422,138.32,138.2,62.43]
[1723826308195,4.8971,138.39,138.28,62.43]
[1723826308495,3.67221976,138.4,138.28,62.43]
[1723826308697,0.04749027,138.35,138.32,0.05394044]
[1723826309592,3.66069027,138.35,138.32,0.05394044]
[1723826309793,0.04749027,138.35,138.32,0.05394044]
[1723826310912,62.43,138.34,138.32,0.05394044]
[1723826311101,3.6136,138.33,138.32,0.05394044]
[1723826311295,62.43,138.34,138.32,0.05394044]
[1723826312196,124.86,138.34,138.15,62.43]
[1723826312399,62.43,138.24,138.13,69.84504305]
[1723826312998,66.046,138.24,138.13,69.84504305]
[1723826313202,62.43,138.24,138.13,69.84504305]
[1723826313499,62.43,138.22,138.1,62.43]
[1723826313702,0.0557186,138.2,138.1,62.43]
[1723826314198,0.0557186,138.2,138.12,62.43]
[1723826314601,62.43,138.24,138.12,62.43]
[1723826314801,3.6163,138.23,138.16,3.618]
[1723826315000,3.6163,138.23,138.12,62.43]
[1723826315204,3.6163,138.23,138.17,3.6178]
[1723826315402,62.43,138.27,138.14,62.43]
[1723826315799,0.04932005,138.17,138.12,62.43]
[1723826316001,2.7252,138.33,138.17,62.43]
[1723826316204,62.43,138.35,138.22,62.43]
[1723826316401,3.6137,138.33,138.22,62.43]
[1723826316603,62.43,138.38,138.25,62.43]
[1723826316899,5.0059,138.39,138.29,62.43]
[1723826317102,1.3936,138.39,138.29,62.43]
[1723826317301,1.3936,138.39,138.26,62.43]
[1723826317500,0.04891714,138.33,138.3,0.05007301]
[1723826318311,62.43,138.35,138.23,61.80236364]
[1723826318504,1.3936,138.39,138.18,62.43]
[1723826318505,62.43,138.33,138.18,62.43]
[1723826318706,62.43,138.3,138.18,62.43]
[1723826319119,62.43,138.3,138.22,3.6165]
[1723826319312,62.43,138.28,138.16,62.43]
[1723826319612,62.43,138.28,138.19,3.6171]
[1723826319811,0.05434119,138.25,138.19,3.6171]
[1723826320014,62.48434119,138.25,138.17,3.6176]
[1723826320204,3.6162,138.24,138.13,62.43]
[1723826320406,62.48434119,138.25,138.13,62.43]
[1723826320601,0.05434119,138.25,138.16,62.43]
[1723826320908,62.43,138.3,138.18,62.43]
[1723826321103,0.04862434,138.22,138.13,62.43]
[1723826321705,3.6168,138.21,138.11,62.43]
[1723826322106,1.371,138.28,138.11,62.43]
[1723826322107,0.04970803,138.19,138.11,62.43]
[1723826322308,0.04970803,138.19,138.09,62.43]
[1723826322508,0.04970803,138.19,138.06,62.17801827]
[1723826322724,0.04970803,138.19,138.08,62.43]
[1723826322901,0.04970803,138.19,138.06,62.17801827]
[1723826322902,63.7569,138.27,138.11,62.43]
[1723826323212,63.7569,138.27,138.18,3.6175]
[1723826323711,63.7569,138.27,138.06,7.241]
[1723826323915,63.7569,138.27,138.12,62.43]
[1723826323916,3.6169,138.21,138.12,62.43]
[1723826324101,62.43,138.21,138.05,67.90373447]
[1723826324307,66.07865898,138.21,138.07,62.43]
[1723826324607,0.04730979,138.14,138.07,62.43]
[1723826325507,0.04730979,138.14,138.1,62.43]
[1723826325708,63.7569,138.27,138.15,3.6181]
[1723826326011,3.6173,138.19,138.15,3.6181]
[1723826326209,6.84,138.26,138.15,3.6181]
[1723826326413,67.36851621,138.27,138.14,62.43]
[1723826326613,6.84,138.26,138.14,62.43]
[1723826327120,1.371,138.28,138.12,62.43]
[1723826327121,0.05314128,138.22,138.19,0.04730979]
[1723826327420,3.615,138.28,138.19,62.47730979]
[1723826327605,28.92,138.3,138.19,62.47730979]
[1723826327806,6.84,138.31,138.19,62.43]
[1723826328009,3.615,138.28,138.19,62.43]
[1723826328209,6.84,138.31,138.21,61.82006157]
[1723826328817,1.3977,138.33,138.23,62.43]
[1723826329015,3.6146,138.3,138.25,3.6157]
[1723826329206,0.05135751,138.27,138.25,3.66587317]
[1723826329512,0.05135751,138.27,138.16,62.43]
[1723826329716,6.89135751,138.27,138.16,62.43]
[1723826329920,62.43,138.3,138.18,62.43]
[1723826330111,6.84,138.29,138.18,62.43]
[1723826330309,62.43,138.3,138.18,62.43]
[1723826330715,63.8282,138.37,138.25,62.43]
[1723826330910,3.6133,138.35,138.25,62.43]
[1723826331517,3.6129,138.36,138.27,62.43]
[1723826331722,0.04639895,138.31,138.27,62.43]
[1723826331912,69.61,138.39,138.27,62.43]
[1723826332220,69.61,138.39,138.3,0.0502779]
[1723826332830,69.61,138.39,138.3,3.6646779]
[1723826333032,69.61,138.39,138.3,3.6144]
[1723826333228,62.43,138.35,138.24,1.3797]
[1723826333433,62.43,138.35,138.33,0.04905451]
[1723826334133,62.43,138.38,138.25,62.43]
[1723826334434,0.04652489,138.35,138.33,0.04697887]
[1723826334836,0.04652489,138.35,138.25,62.43]
[1723826334837,0.04652489,138.35,138.27,62.43]
[1723826335224,62.43,138.42,138.33,0.04587098]
[1723826335535,7.18,138.43,138.32,62.43]
[1723826335835,7.18,138.43,138.36,0.05080708]
[1723826336032,7.18,138.43,138.38,3.6123]
[1723826336229,0.05427081,138.39,138.36,0.05080708]
[1723826336434,0.05427081,138.39,138.37,3.6125]
[1723826336942,0.05427081,138.39,138.36,0.05080708]
[1723826337143,7.18,138.43,138.34,62.43]
[1723826337635,7.18,138.43,138.4,3.6116]
[1723826337828,98.53,138.47,138.36,62.43]
[1723826338437,36.1,138.47,138.36,62.43]
[1723826338636,0.0536134,138.39,138.36,0.05331095]
[1723826338832,1.321,138.53,138.43,3.6109]
[1723826338833,62.43,138.51,138.43,3.6109]
[1723826339037,62.43,138.51,138.38,62.43]
[1723826339234,3.6096,138.49,138.41,62.43]
[1723826339434,3.6096,138.49,138.39,7.18]
[1723826339435,62.43,138.47,138.34,62.43]
[1723826339639,69.59,138.47,138.34,62.43]
[1723826339840,62.43,138.44,138.34,62.43]
[1723826340044,65.98832851,138.44,138.32,62.43]
[1723826340237,0.05042539,138.42,138.39,0.04570048]
[1723826340433,3.6118,138.4,138.39,0.04570048]
[1723826340630,0.05042539,138.42,138.39,0.04570048]
[1723826340840,7.241,138.52,138.39,0.04570048]
[1723826340841,62.43,138.52,138.39,62.47570048]
[1723826341236,62.43,138.52,138.39,62.43]
[1723826341442,3.6102,138.47,138.39,62.43]
[1723826341638,6.14797339,138.53,138.44,62.43]
[1723826341639,7.16,138.51,138.44,62.43]
[1723826341840,12.25632222,138.55,138.48,3.6097]
[1723826342045,7.16,138.55,138.46,62.43]
[1723826342251,0.05542057,138.49,138.46,62.48405922]
[1723826342441,7.16,138.55,138.5,3.609]
[1723826342640,1.2961,138.58,138.46,62.43]
[1723826342848,1.2961,138.58,138.49,62.43]
[1723826343039,8.5163,138.6,138.49,62.43]
[1723826343649,3.6072,138.58,138.52,3.6085]
[1723826343946,7.16,138.62,138.51,62.43]
[1723826344141,0.05284395,138.56,138.54,3.6082]
[1723826344344,0.05284395,138.56,138.53,0.05425429]
[1723826344541,0.05284395,138.56,138.55,3.6079]
[1723826344735,7.16,138.62,138.54,62.43]
[1723826345143,62.43,138.66,138.54,62.43]
[1723826345346,7.16,138.7,138.46,63.7307]
[1723826345347,62.43,138.63,138.52,62.43]
[1723826346246,7.16,138.64,138.52,62.43]
[1723826346545,7.16,138.64,138.54,62.43]
[1723826346741,7.16,138.64,138.58,3.6071]
[1723826346742,0.05424388,138.59,138.58,3.6071]
[1723826346942,0.05424388,138.59,138.56,0.05519469]
[1723826347153,0.05424388,138.59,138.57,3.6072]
[1723826347543,69.59,138.64,138.52,62.43]
[1723826347759,3.6072,138.58,138.53,3.6083]
[1723826347943,69.59,138.64,138.52,62.43]
[1723826348144,3.65716628,138.59,138.57,0.05235466]
[1723826348944,3.6071,138.58,138.57,0.05235466]
[1723826349344,69.59,138.64,138.57,0.05235466]
[1723826349549,0.05099283,138.59,138.57,0.05235466]
[1723826349952,69.59,138.64,138.57,0.05235466]
[1723826350153,0.04655818,138.59,138.57,0.05235466]
[1723826350457,7.16,138.64,138.57,0.05235466]
[1723826350756,0.04831011,138.59,138.57,0.05235466]
[1723826351055,3.6065,138.61,138.57,0.05235466]
[1723826351245,69.59,138.64,138.57,0.05235466]
[1723826351758,3.65579154,138.59,138.57,0.05235466]
[1723826352654,3.6071,138.58,138.57,0.05235466]
[1723826352856,69.59,138.64,138.57,0.05235466]
[1723826353050,3.6065,138.61,138.57,0.05235466]
[1723826353251,0.046268,138.59,138.57,0.05235466]
[1723826353452,0.046268,138.59,138.58,3.6071]
[1723826353651,10.7657,138.64,138.58,3.6071]
[1723826353853,7.16,138.64,138.57,0.05235466]
[1723826354153,0.05101255,138.6,138.57,0.05235466]
[1723826354966,0.05101255,138.6,138.46,63.7307]
[1723826354967,3.55627986,138.59,138.49,62.43]
[1723826355458,62.43,138.6,138.47,63.7371]
[1723826355659,7.56128279,138.59,138.47,62.43]
[1723826355858,3.6085,138.53,138.48,3.6096]
[1723826356156,12.15185479,138.59,138.47,62.43]
[1723826356453,0.04705139,138.52,138.49,0.05025168]
[1723826356655,3.65585139,138.52,138.49,0.05025168]
[1723826356961,12.15185479,138.59,138.47,62.43]
[1723826357253,0.04591614,138.52,138.49,0.0557199]
[1723826357759,0.40142861,138.57,138.47,62.43]
[1723826357954,12.15185479,138.59,138.52,62.43]
[1723826357955,8.4635,138.59,138.52,62.43]
[1723826358456,0.05354989,138.57,138.52,62.43]
[1723826358657,0.05354989,138.57,138.5,62.43]
[1723826358969,0.05354989,138.57,138.54,0.05508456]
[1723826359344,8.4635,138.59,138.52,3.6087]
[1723826359547,12.05056539,138.59,138.52,3.6087]
[1723826359761,12.05056539,138.59,138.5,62.43]
[1723826360063,0.04716892,138.57,138.54,0.04573732]
[1723826360451,62.43,138.55,138.42,6.1947]
[1723826360659,1.3176,138.54,138.43,62.43]
[1723826360859,62.43,138.52,138.4,62.43]
[1723826361165,62.43,138.52,138.38,62.43]
[1723826361166,7.1,138.51,138.38,62.43]
[1723826361356,10.79816242,138.51,138.38,62.43]
[1723826361561,3.6102,138.47,138.41,3.6114]
[1723826361756,10.79816242,138.51,138.38,62.43]
[1723826361954,10.79816242,138.51,138.43,0.04561621]
[1723826361955,0.0507902,138.46,138.43,0.04561621]
[1723826363374,3.6108,138.44,138.43,0.04561621]
[1723826363760,7.1,138.45,138.43,0.04561621]
[1723826364659,3.6108,138.44,138.43,0.04561621]
[1723826365165,69.53,138.45,138.32,63.8031]
[1723826365358,1.2873,138.44,138.32,63.8031]
[1723826365659,1.2873,138.44,138.35,3.6129]
[1723826365660,7.24131758,138.43,138.35,3.6129]
[1723826365858,3.63021758,138.43,138.34,62.43]
[1723826366261,3.6113,138.42,138.34,66.0432]
[1723826366454,0.05232418,138.4,138.37,0.05414222]
[1723826367265,10.7123,138.39,138.37,0.05414222]
[1723826367462,7.1,138.39,138.29,62.43]
[1723826367674,6.84835719,138.39,138.29,62.43]
[1723826368056,69.27835719,138.39,138.27,62.43]
[1723826368370,62.43,138.34,138.16,7.2361]
[1723826368658,62.43,138.4,138.26,62.43]
[1723826368859,62.43,138.4,138.19,63.7534]
[1723826368860,62.43,138.35,138.25,0.04864544]
[1723826369067,3.6141,138.32,138.21,62.43]
[1723826369259,10.7141,138.32,138.21,62.43]
[1723826369458,7.1,138.32,138.24,62.43]
[1723826369655,7.1,138.35,138.26,62.43]
[1723826370160,7.1,138.35,138.21,7.1]
[1723826370161,7.1,138.35,138.24,62.43]
[1723826370461,0.04782457,138.32,138.29,0.04660281]
[1723826374975,0.04782457,138.32,138.29,3.66110281]
[1723826375466,0.04782457,138.32,138.3,3.6144]
[1723826376163,0.04782457,138.32,138.29,0.04660281]
[1723826381567,7.12,138.35,138.29,0.04660281]
[1723826381568,339.0,138.51,138.31,124.86]
[1723826381765,3.611,138.43,138.37,3.6124]
[1723826381970,3.58636771,138.45,138.37,3.6124]
[1723826382174,2.6729,138.46,138.34,69.89]
[1723826382475,3.6107,138.45,138.34,69.89]
[1723826382661,3.6107,138.45,138.37,62.43]
[1723826382865,7.23466672,138.45,138.37,62.43]
[1723826383374,0.0530617,138.41,138.39,0.04772634]
[1723826383772,0.0530617,138.41,138.39,3.65972634]
[1723826384272,0.0530617,138.41,138.4,3.6118]
[1723826384670,227.3612,138.5,138.44,3.6106]
[1723826384866,3.6097,138.49,138.43,62.43]
[1723826385365,4.9706,138.5,138.45,3.6103]
[1723826385572,1.3612,138.5,138.43,62.43]
[1723826385774,1.3612,138.5,138.44,3.6108]
[1723826385971,3.6095,138.49,138.44,3.6108]
[1723826386177,3.6095,138.49,138.46,0.04642692]
[1723826386178,0.05186554,138.49,138.46,0.04642692]
[1723826387875,0.05186554,138.49,138.48,3.6097]
[1723826388980,0.05186554,138.49,138.48,66.0397]
[1723826389683,0.05186554,138.49,138.46,62.47642692]
[1723826390090,0.05186554,138.49,138.46,0.04642692]
[1723826390710,3.61,138.47,138.46,0.04642692]
[1723826391288,0.05186554,138.49,138.46,0.04642692]
[1723826391289,3.6098,138.48,138.46,0.04642692]
[1723826391484,0.05186554,138.49,138.46,0.04642692]
[1723826392289,0.05186554,138.49,138.47,3.61]
[1723826392589,0.05186554,138.49,138.46,0.04642692]
[1723826393787,3.66146554,138.49,138.46,0.04642692]
[1723826393991,0.05186554,138.49,138.46,0.04642692]
[1723826394789,3.66136554,138.49,138.46,0.04642692]
[1723826394981,0.05186554,138.49,138.46,0.04642692]
[1723826396493,0.05186554,138.49,138.48,3.6097]
[1723826397690,0.05186554,138.49,138.48,66.0397]
[1723826399395,0.05186554,138.49,138.46,0.04642692]
[1723826399396,0.05186554,138.49,138.46,62.47642692]
[1723826399791,0.05186554,138.49,138.47,3.6098]
[1723826399987,3.66136554,138.49,138.46,62.47642692]
[1723826400187,0.05186554,138.49,138.46,0.04642692]
[1723826400591,3.61,138.47,138.46,0.04642692]
[1723826400796,0.05186554,138.49,138.46,0.04642692]
[1723826402487,3.61,138.47,138.46,0.04642692]
[1723826402693,2.6966,138.48,138.37,62.43]
[1723826403198,2.6966,138.48,138.31,7.44]
[1723826403199,62.43,138.47,138.35,62.43]
[1723826403388,62.43,138.45,138.33,62.43]
[1723826403587,3.6115,138.42,138.36,3.6128]
[1723826403785,3.54156726,138.41,138.36,3.6128]
[1723826403999,69.87,138.44,138.33,62.43]
[1723826404296,1.4124949,138.4,138.33,62.43]
[1723826404684,1.4124949,138.4,138.37,0.05506985]
[1723826405506,0.0490949,138.4,138.37,0.05506985]
[1723826406999,3.6610949,138.4,138.37,0.05506985]
[1723826407298,0.0490949,138.4,138.37,0.05506985]
[1723826410096,3.6122,138.39,138.37,0.05506985]
[1723826410493,3.6610949,138.4,138.37,0.05506985]
[1723826410691,0.0490949,138.4,138.37,0.05506985]
[1723826411792,0.0490949,138.4,138.37,62.48506985]
[1723826412195,0.0490949,138.4,138.39,62.43]
[1723826412400,0.0490949,138.4,138.39,66.0421]
[1723826412598,7.38,138.43,138.39,62.43]
[1723826412800,7.38,138.43,138.42,62.43]
[1723826413003,7.38,138.43,138.42,66.0413]
[1723826414098,7.38,138.43,138.41,0.05478326]
[1723826414902,3.66241254,138.44,138.41,0.05478326]
[1723826414903,3.656241,138.44,138.41,0.05478326]
[1723826415106,3.6113,138.42,138.41,0.05478326]
[1723826415299,0.05151254,138.44,138.41,0.05478326]
[1723826415604,3.611,138.43,138.41,0.05478326]
[1723826416105,3.74421853,138.44,138.41,0.05478326]
[1723826416303,3.611,138.43,138.41,0.05478326]
[1723826417005,7.31682968,138.44,138.41,0.05478326]
[1723826417202,3.70592968,138.44,138.41,0.05478326]
[1723826417500,7.31682968,138.44,138.41,0.05478326]
[1723826417705,0.05151254,138.44,138.41,0.05478326]
[1723826418706,0.05151254,138.44,138.43,3.611]
[1723826419103,0.05151254,138.44,138.41,0.05478326]
[1723826419304,0.05151254,138.44,138.27,7.2301]
[1723826419508,3.57633827,138.44,138.34,62.43]
[1723826419702,3.6117,138.41,138.36,3.6128]
[1723826420213,3.6124,138.38,138.34,62.43]
[1723826420509,0.05503416,138.4,138.37,0.05300175]
[1723826420805,3.6125,138.38,138.33,3.6134]
[1723826421108,0.04790357,138.4,138.37,0.05085814]
[1723826421305,4.9202,138.41,138.34,62.43]
[1723826421804,0.04997395,138.39,138.36,0.0457649]
[1723826422204,0.04997395,138.39,138.36,62.4757649]
[1723826422510,0.04997395,138.39,138.38,62.43]
[1723826422709,0.04997395,138.39,138.38,66.0423]
[1723826423611,0.04997395,138.39,138.36,62.4757649]
[1723826423806,0.04997395,138.39,138.36,0.0457649]
[1723826424020,3.6123,138.38,138.36,0.0457649]
[1723826424306,0.04997395,138.39,138.36,0.0457649]
[1723826424499,3.6123,138.38,138.36,0.0457649]
[1723826424696,7.42997395,138.39,138.36,0.0457649]
[1723826425122,3.6126,138.37,138.36,0.0457649]
[1723826425511,3.6131,138.35,138.31,62.43]
[1723826425719,1.3877,138.38,138.28,62.43]
[1723826426008,1.3877,138.38,138.28,66.0448]
[1723826426202,63.8177,138.38,138.26,62.43]
[1723826426606,63.8177,138.38,138.28,3.6148]
[1723826426607,3.6138,138.33,138.28,3.6148]
[1723826426806,3.6138,138.33,138.26,62.43]
[1723826427207,0.05406481,138.33,138.31,0.04715802]
[1723826427617,0.05406481,138.33,138.26,62.43]
[1723826427914,7.43406481,138.33,138.26,62.43]
[1723826428315,11.04786481,138.33,138.31,0.05513858]
[1723826428515,7.43406481,138.33,138.31,0.05513858]
[1723826428812,7.43406481,138.33,138.24,62.43]
[1723826429029,8.79086481,138.33,138.24,62.43]
[1723826429211,3.6154,138.27,138.22,3.6164]
[1723826429509,7.38,138.27,138.19,62.43]
[1723826429915,0.05029622,138.26,138.23,0.04760603]